bitfinex/quotes_SOLUSD_20220114
["timestamp","ask_amount","ask_price","bid_price","bid_amount"]
[1642176896776,18.522,146.44,146.31,5.78081799]
[1642176897376,18.522,146.44,146.3,27.4322]
[1642176897874,18.522,146.44,146.31,68.0]
[1642176898075,29.0181,146.44,146.3,27.4322]
[1642176898276,1.70077588,146.43,146.3,27.4322]
[1642176898477,2.732,146.42,146.31,3.90315845]
[1642176899076,2.732,146.42,146.32,31.93757526]
[1642176899275,12.522,146.43,146.32,31.93757526]
[1642176899574,0.45815482,146.42,146.32,38.44757526]
[1642176899774,0.45815482,146.42,146.32,34.91957526]
[1642176900376,0.45815482,146.42,146.32,2.982]
[1642176900576,0.45815482,146.42,146.33,3.90315845]
[1642176901178,12.98015482,146.42,146.33,3.90315845]
[1642176901575,19.23015482,146.42,146.33,3.90315845]
[1642176902275,19.23015482,146.42,146.3,3.90315845]
[1642176902482,24.1647,146.41,146.3,6.63615845]
[1642176902686,2.733,146.4,146.3,3.90315845]
[1642176902884,77.79,146.39,146.3,3.90315845]
[1642176903084,2.733,146.38,146.3,3.90315845]
[1642176903285,12.523,146.38,146.3,3.90315845]
[1642176903487,11.95867215,146.37,146.3,3.90315845]
[1642176903685,12.523,146.36,146.28,0.34167813]
[1642176903885,35.5704,146.36,146.28,0.34167813]
[1642176904089,52.0,146.34,146.24,5.78081799]
[1642176904290,12.524,146.33,146.24,5.78081799]
[1642176904485,18.524,146.33,146.24,5.78081799]
[1642176904686,0.49376552,146.32,146.2,5.78081799]
[1642176904886,34.62036552,146.32,146.21,2.234]
[1642176905086,51.12596552,146.32,146.21,2.234]
[1642176905286,51.12596552,146.32,146.21,8.234]
[1642176905906,51.12596552,146.32,146.22,3.90591702]
[1642176906108,53.85996552,146.32,146.22,3.90591702]
[1642176906309,53.85996552,146.32,146.22,4.15591702]
[1642176907207,53.85996552,146.32,146.22,6.88991702]
[1642176907409,53.85996552,146.32,146.22,6.63991702]
[1642176907608,53.85996552,146.32,146.23,3.90591702]
[1642176908509,53.60996552,146.32,146.23,3.90591702]
[1642176908710,53.60996552,146.32,146.23,0.25]
[1642176908909,50.87596552,146.32,146.23,0.25]
[1642176909207,53.60996552,146.32,146.2,2.734]
[1642176909408,53.60996552,146.32,146.2,2.984]
[1642176909812,53.85996552,146.32,146.2,0.25]
[1642176910009,53.85996552,146.32,146.21,2.734]
[1642176910410,55.5607414,146.32,146.21,2.734]
[1642176910610,55.5607414,146.32,146.21,3.90619804]
[1642176911214,68.0,146.31,146.21,3.90619804]
[1642176911410,10.258,146.27,146.21,3.90619804]
[1642176912011,1.70737215,146.26,146.2,3.90619804]
[1642176912414,1.70737215,146.26,146.2,4.15619804]
[1642176913313,1.70737215,146.26,146.2,3.90619804]
[1642176913721,11.96587215,146.26,146.18,2.735]
[1642176913919,22.00587215,146.26,146.18,2.235]
[1642176914118,28.00587215,146.26,146.18,2.235]
[1642176914521,3.88108363,146.25,146.15,5.9518803]
[1642176914720,9.79,146.24,146.15,5.9518803]
[1642176914922,2.736,146.23,146.15,5.9518803]
[1642176915123,9.79,146.22,146.15,4.9518803]
[1642176915322,10.2638,146.2,146.14,4.9518803]
[1642176915522,20.0538,146.2,146.14,4.9518803]
[1642176915721,20.3038,146.2,146.14,4.9518803]
[1642176916926,20.3038,146.2,146.07,9.64432323]
[1642176917163,44.9227,146.2,146.1,3.90863069]
[1642176917525,44.9227,146.2,146.1,4.15863069]
[1642176918028,50.9227,146.2,146.1,3.90863069]
[1642176918226,2.736,146.19,146.09,3.90863069]
[1642176918426,10.2654,146.16,146.09,3.90863069]
[1642176918829,9.79,146.18,146.09,3.90863069]
[1642176919428,9.79,146.18,146.07,3.90863069]
[1642176919727,9.79,146.18,146.07,77.40863069]
[1642176919929,9.79,146.18,146.08,1.70062764]
[1642176920329,9.79,146.18,146.08,7.95062764]
[1642176920529,9.79,146.18,146.08,15.76799431]
[1642176920931,9.79,146.18,146.08,15.51799431]
[1642176921133,9.79,146.18,146.08,13.81736667]
[1642176921930,10.04,146.18,146.08,13.81736667]
[1642176922129,10.04,146.18,146.08,6.0]
[1642176922331,20.3041,146.18,146.08,6.0]
[1642176922630,2.737,146.17,146.05,48.2274]
[1642176922831,38.25947588,146.17,146.05,48.2274]
[1642176923133,42.8087,146.17,146.06,7.81865483]
[1642176923431,10.266,146.16,146.06,7.81865483]
[1642176923630,2.737,146.15,146.06,7.81865483]
[1642176923833,2.737,146.15,146.05,116.2274]
[1642176924030,6.25,146.15,146.05,122.2274]
[1642176924231,6.25,146.15,146.05,116.4774]
[1642176924431,16.5164,146.15,146.05,122.4774]
[1642176924657,10.5164,146.15,146.05,122.4774]
[1642176924835,16.5164,146.15,146.05,122.4774]
[1642176925233,16.2664,146.15,146.05,122.4774]
[1642176925431,10.2664,146.15,146.05,122.4774]
[1642176925633,10.2664,146.15,146.05,54.4774]
[1642176926339,68.0,146.13,145.99,10.3232]
[1642176926635,68.0,146.07,145.93,15.43091716]
[1642176926835,132.22,146.06,145.93,15.43091716]
[1642176927037,122.43,146.03,145.82,36.23413934]
[1642176927236,74.0,146.01,145.77,10.3234]
[1642176927535,10.2881,145.84,145.72,34.0]
[1642176927936,2.743,145.83,145.72,34.0]
[1642176928137,9.79,145.82,145.71,72.46827867]
[1642176928338,9.79,145.82,145.7,29.14897149]
[1642176928537,13.0345,145.81,145.7,29.14897149]
[1642176928737,9.79,145.8,145.7,29.14897149]
[1642176929141,9.79,145.8,145.7,30.84959913]
[1642176929338,9.79,145.8,145.7,36.84959913]
[1642176929540,9.79,145.84,145.71,74.0]
[1642176929742,9.79,145.84,145.71,81.83730469]
[1642176929939,9.79,145.84,145.72,69.70062764]
[1642176930139,9.79,145.84,145.73,27.38188446]
[1642176930339,9.79,145.88,145.73,29.0825121]
[1642176930541,2.743,145.87,145.76,10.2845]
[1642176930739,2.743,145.87,145.76,32.90615113]
[1642176930940,2.743,145.87,145.76,38.90615113]
[1642176931841,13.0289,145.87,145.76,40.60677877]
[1642176932042,13.2789,145.87,145.76,38.90615113]
[1642176932272,2.743,145.87,145.76,40.60677877]
[1642176932473,9.79,145.88,145.76,40.60677877]
[1642176933073,10.04,145.88,145.76,40.60677877]
[1642176933273,20.3252,145.88,145.76,38.90615113]
[1642176933473,20.3252,145.88,145.76,28.62165113]
[1642176933674,2.743,145.87,145.76,30.32227877]
[1642176933873,12.533,145.87,145.76,28.62165113]
[1642176934176,12.533,145.87,145.77,1.70062764]
[1642176934374,9.79,145.87,145.77,1.70062764]
[1642176934575,9.79,145.87,145.77,7.70062764]
[1642176934775,2.743,145.9,145.77,7.70062764]
[1642176934977,8.24,145.89,145.78,1.70062764]
[1642176935177,8.24,145.89,145.79,28.66400385]
[1642176935675,8.24,145.89,145.8,1.70062764]
[1642176935877,2.742,145.88,145.68,15.67460939]
[1642176936076,8.24,145.87,145.68,15.67460939]
[1642176936277,2.743,145.86,145.68,15.67460939]
[1642176936476,10.2891,145.83,145.71,10.2894]
[1642176936681,18.5291,145.83,145.68,15.67460939]
[1642176936876,2.744,145.82,145.68,15.67460939]
[1642176937077,8.24,145.81,145.68,15.67460939]
[1642176937282,2.744,145.8,145.67,65.08050154]
[1642176937479,13.0348,145.8,145.69,9.7906]
[1642176937878,13.0348,145.8,145.69,15.7906]
[1642176938081,13.2848,145.8,145.69,15.7906]
[1642176938279,13.2848,145.8,145.69,16.0406]
[1642176939078,2.994,145.8,145.7,23.54733995]
[1642176939281,0.25,145.8,145.71,10.2897]
[1642176939479,8.24,145.81,145.71,16.7997]
[1642176940480,10.2886,145.84,145.71,16.7997]
[1642176940679,10.2886,145.84,145.71,24.63707625]
[1642176940879,16.2886,145.84,145.71,24.63707625]
[1642176941079,10.984,145.85,145.71,24.63707625]
[1642176941284,8.24,145.85,145.71,24.63707625]
[1642176941679,14.24,145.85,145.71,24.63707625]
[1642176941885,8.24,145.85,145.71,24.63707625]
[1642176942079,18.5274,145.85,145.71,24.63707625]
[1642176943681,18.5274,145.85,145.72,68.0]
[1642176943883,18.5274,145.85,145.75,10.2866]
[1642176944083,18.5274,145.85,145.76,26.63739927]
[1642176944283,8.24,145.85,145.76,26.63739927]
[1642176944686,8.24,145.88,145.76,26.63739927]
[1642176944884,2.743,145.87,145.76,26.63739927]
[1642176945084,10.983,145.87,145.76,37.17389927]
[1642176945285,2.743,145.89,145.77,68.0]
[1642176945486,10.2842,145.9,145.77,74.51]
[1642176945986,10.2842,145.9,145.77,6.25]
[1642176946388,10.2842,145.9,145.78,10.2847]
[1642176946588,2.742,145.89,145.79,30.5808255]
[1642176946887,13.027,145.89,145.79,30.5808255]
[1642176947090,80.967,145.91,145.79,31.0908255]
[1642176947091,2.742,145.9,145.79,31.0908255]
[1642176947288,80.967,145.91,145.79,31.0908255]
[1642176947488,80.967,145.91,145.79,41.1153255]
[1642176947690,2.742,145.9,145.79,109.1153255]
[1642176948389,2.992,145.9,145.79,109.1153255]
[1642176948989,2.742,145.9,145.8,8.24]
[1642176949189,72.727,145.91,145.83,10.2816]
[1642176949489,10.982,145.94,145.83,10.2816]
[1642176949988,17.232,145.94,145.83,10.2816]
[1642176950590,10.982,145.94,145.83,10.5316]
[1642176950791,2.741,145.95,145.9,68.0]
[1642176950994,380.09455272,145.97,145.9,76.996]
[1642176951190,380.09455272,145.97,145.91,29.02231644]
[1642176951592,380.09455272,145.97,145.91,29.27231644]
[1642176951990,2.741,145.99,145.91,49.48886622]
[1642176952189,2.74,146.02,145.91,55.74886622]
[1642176952395,2.74,146.04,145.91,55.74886622]
[1642176952790,2.74,146.06,145.91,55.74886622]
[1642176953392,2.74,146.06,145.99,10.2712]
[1642176955997,2.739,146.08,145.99,10.5212]
[1642176956403,88.1017,146.09,145.99,10.5212]
[1642176956602,79.8617,146.09,145.99,10.5212]
[1642176957605,77.1227,146.09,145.99,10.5212]
[1642176957801,2.738,146.08,145.99,10.5212]
[1642176958001,2.988,146.08,145.99,10.5212]
[1642176958529,2.738,146.08,145.99,11.72184978]
[1642176959030,2.738,146.08,145.99,10.0212]
[1642176959230,77.1227,146.09,145.99,10.0212]
[1642176959629,77.3727,146.09,145.99,9.7712]
[1642176960132,2.738,146.08,145.99,9.7712]
[1642176960531,2.988,146.08,145.99,9.7712]
[1642176960930,83.1227,146.09,145.99,9.7712]
[1642176961134,0.25,146.08,146.0,68.0]
[1642176961431,0.25,146.08,146.02,10.2692]
[1642176961632,0.25,146.09,146.02,10.2692]
[1642176962832,2.739,146.1,146.0,10.2703]
[1642176962833,2.738,146.08,146.0,10.2703]
[1642176963035,0.25,146.08,145.94,8.24]
[1642176963234,4.43977588,146.07,145.89,8.24]
[1642176963434,8.24,146.06,145.89,8.24]
[1642176963633,2.74,146.05,145.89,8.24]
[1642176963835,10.2744,146.04,145.94,10.2744]
[1642176964035,2.739,146.03,145.95,28.49952619]
[1642176964433,8.989,146.03,145.95,28.49952619]
[1642176964634,6.25,146.03,145.91,8.24]
[1642176964833,0.25,146.03,145.96,10.2733]
[1642176965037,6.25,146.03,145.96,10.2733]
[1642176965433,2.739,146.02,145.96,10.2733]
[1642176965634,6.25,146.03,145.96,10.2733]
[1642176965836,0.25,146.02,145.96,10.2733]
[1642176966037,6.25,146.03,145.96,10.2733]
[1642176966237,6.25,146.03,145.96,39.88737438]
[1642176966639,0.25,146.03,145.96,39.88737438]
[1642176966839,6.25,146.03,145.96,39.88737438]
[1642176967341,6.25,146.03,145.96,10.2733]
[1642176968141,0.25,146.03,145.96,10.2733]
[1642176968342,6.25,146.03,145.97,68.0]
[1642176968541,6.25,146.03,145.98,10.2718]
[1642176968843,2.739,146.07,145.99,68.0]
[1642176969043,2.739,146.09,146.0,27.66172481]
[1642176969243,2.739,146.09,146.0,36.24972481]
[1642176969443,3.08587617,146.11,146.0,36.75972481]
[1642176969644,3.08587617,146.11,146.01,1.70064978]
[1642176969844,2.738,146.13,146.0,36.49972481]
[1642176970046,2.738,146.13,146.0,36.75972481]
[1642176970245,2.738,146.13,146.0,36.49972481]
[1642176970445,13.2561,146.13,146.01,10.2695]
[1642176970650,19.2561,146.13,146.01,10.2695]
[1642176970845,19.2561,146.13,146.02,68.0]
[1642176971048,19.2561,146.13,146.02,68.25]
[1642176971246,19.0061,146.13,146.03,26.77979778]
[1642176971447,19.0061,146.13,146.03,27.02979778]
[1642176972048,19.0061,146.13,146.04,10.2674]
[1642176972949,19.2561,146.13,146.04,10.2674]
[1642176975554,19.2561,146.13,146.04,40.71621097]
[1642176975755,2.738,146.13,146.04,48.61321097]
[1642176975954,26.48437617,146.15,146.04,48.87321097]
[1642176976354,32.48437617,146.15,146.09,10.2643]
[1642176976553,9.08587617,146.15,146.09,10.2643]
[1642176976754,6.0,146.15,146.05,34.2143]
[1642176976953,0.25,146.15,146.05,34.4643]
[1642176977384,11.82387617,146.16,146.07,10.2653]
[1642176977786,8.738,146.16,146.07,10.2653]
[1642176978586,19.2537,146.16,146.07,10.2653]
[1642176980291,19.2537,146.16,146.05,10.2667]
[1642176980485,19.2537,146.16,146.0,34.227]
[1642176980486,8.24,146.15,146.0,34.227]
[1642176980686,2.738,146.14,146.0,34.227]
[1642176980887,10.2688,146.12,146.0,34.227]
[1642176981089,2.738,146.11,146.0,34.227]
[1642176981288,19.2568,146.12,146.0,34.227]
[1642176982092,19.2568,146.12,146.01,68.0]
[1642176982489,19.2568,146.12,146.03,10.2681]
[1642176982689,16.5188,146.12,146.03,10.2681]
[1642176982892,16.5188,146.12,146.03,78.2681]
[1642176983692,6.25,146.12,146.03,78.2681]
[1642176984094,6.25,146.12,146.03,85.5441]
[1642176984492,0.25,146.12,146.03,85.5441]
[1642176984692,6.25,146.12,146.03,85.5441]
[1642176985291,0.25,146.12,146.03,85.5441]
[1642176985494,19.2553,146.14,146.03,85.5441]
[1642176986094,19.2553,146.14,146.03,17.5441]
[1642176986295,19.2553,146.14,146.03,10.2681]
[1642176986496,19.2553,146.14,146.03,78.2681]
[1642176987197,19.2553,146.14,146.03,10.2681]
[1642176988097,27.4953,146.14,146.03,10.2681]
[1642176988596,8.49,146.14,146.04,27.59525578]
[1642176988799,8.49,146.14,146.08,10.2646]
[1642176988996,22.6535,146.15,146.08,17.8576]
[1642176989197,3.08587617,146.16,146.08,17.8576]
[1642176989397,1.660535,146.14,146.08,19.55824978]
[1642176990297,1.660535,146.14,146.11,10.26]
[1642176990602,3.5e-05,146.14,146.12,36.0]
[1642176990998,3.5e-05,146.16,146.13,68.0]
[1642176991397,3.5e-05,146.16,146.13,10.2572]
[1642176992299,3.08587617,146.2,146.13,10.2572]
[1642176992499,5.82187617,146.22,146.13,10.2572]
[1642176992700,3.08587617,146.22,146.14,26.60019589]
[1642176993001,3.08587617,146.22,146.16,10.2583]
[1642176993405,3.08587617,146.23,146.16,17.2493]
[1642176993800,3.08587617,146.23,146.16,16.9993]
[1642176994602,3.08587617,146.24,146.16,10.2583]
[1642176995002,3.33587617,146.24,146.16,10.5083]
[1642176995202,9.33587617,146.24,146.16,10.5083]
[1642176996103,9.08587617,146.24,146.16,10.5083]
[1642176997413,3.08587617,146.23,146.16,10.5083]
[1642176997810,3.08587617,146.23,146.19,10.2564]
[1642176998211,3.08587617,146.24,146.19,10.2564]
[1642176998710,9.08587617,146.24,146.19,10.2564]
[1642176998910,3.08587617,146.24,146.19,10.2564]
[1642176999111,9.08587617,146.24,146.19,10.2564]
[1642177000212,9.08587617,146.24,146.19,78.2564]
[1642177000413,9.08587617,146.24,146.19,78.5064]
[1642177000711,3.08587617,146.24,146.2,24.70766706]
[1642177000911,3.08587617,146.24,146.21,68.0]
[1642177001115,2.735,146.29,146.21,68.0]
[1642177001116,3.08587617,146.26,146.22,10.2537]
[1642177001313,3.08587617,146.26,146.23,68.0]
[1642177001515,3.08587617,146.26,146.23,91.39866603]
[1642177001914,3.08587617,146.26,146.23,68.25]
[1642177002316,3.08587617,146.28,146.23,10.5032]
[1642177002515,9.33587617,146.28,146.18,9.86]
[1642177002715,3.33587617,146.28,146.19,68.0]
[1642177002914,9.33587617,146.28,146.19,68.0]
[1642177003114,3.08587617,146.27,146.19,68.25]
[1642177003540,9.08587617,146.27,146.19,68.25]
[1642177003741,9.08587617,146.27,146.19,68.0]
[1642177003939,9.33587617,146.27,146.19,10.2561]
[1642177004740,3.08587617,146.26,146.19,10.2561]
[1642177004944,9.33587617,146.26,146.19,10.5061]
[1642177005142,3.33587617,146.26,146.19,10.5061]
[1642177005643,3.33587617,146.26,146.18,9.86]
[1642177005844,9.33587617,146.26,146.18,9.86]
[1642177006047,2.735,146.25,146.12,9.86]
[1642177006444,8.985,146.25,146.12,9.86]
[1642177006645,3.08587617,146.23,146.12,9.86]
[1642177006846,2.736,146.22,146.12,9.86]
[1642177007046,6.0,146.22,146.12,35.57072335]
[1642177007246,8.986,146.22,146.12,45.83202335]
[1642177007450,2.986,146.22,146.12,46.09202335]
[1642177007848,2.986,146.22,146.12,46.34202335]
[1642177008050,6.07187617,146.22,146.12,46.34202335]
[1642177008251,3.33587617,146.22,146.12,48.04279328]
[1642177008852,0.25,146.22,146.12,48.04279328]
[1642177009152,3.33587617,146.23,146.12,48.04279328]
[1642177009550,3.33587617,146.23,146.12,54.04279328]
[1642177009749,3.33587617,146.23,146.12,53.79279328]
[1642177010352,0.25,146.23,146.12,53.79279328]
[1642177010551,3.08587617,146.24,146.12,53.79279328]
[1642177010952,3.08587617,146.24,146.12,54.04279328]
[1642177011457,6.60343552,146.25,146.12,54.04279328]
[1642177011653,16.46343552,146.25,146.12,10.2613]
[1642177011953,4.43677588,146.24,146.11,10.2614]
[1642177012157,9.86,146.23,146.08,3.90930779]
[1642177012352,2.736,146.22,146.08,3.90930779]
[1642177012553,9.86,146.21,146.08,26.70289924]
[1642177012853,2.737,146.2,146.08,26.70289924]
[1642177013053,8.737,146.2,146.08,37.21549924]
[1642177013252,8.987,146.2,146.09,68.0]
[1642177013452,12.50455935,146.2,146.09,68.0]
[1642177013654,3.08587617,146.19,146.09,68.0]
[1642177014055,9.33587617,146.19,146.09,68.0]
[1642177014454,9.33587617,146.19,146.11,31.8201535]
[1642177014654,6.25,146.19,146.11,31.8201535]
[1642177015555,0.25,146.19,146.11,31.8201535]
[1642177015756,6.25,146.19,146.11,99.8201535]
[1642177016358,0.25,146.19,146.11,99.8201535]
[1642177016960,0.25,146.19,146.11,31.8201535]
[1642177017159,9.86,146.19,146.09,0.25]
[1642177017364,10.11,146.19,146.05,9.86]
[1642177017559,2.737,146.18,146.05,9.86]
[1642177017759,9.86,146.17,146.03,3.90930779]
[1642177017961,2.737,146.16,146.03,3.90930779]
[1642177018159,2.737,146.16,146.05,68.0]
[1642177018360,8.737,146.16,146.05,68.0]
[1642177018559,8.987,146.16,146.05,68.0]
[1642177018758,10.2666,146.15,146.05,68.0]
[1642177018959,16.5166,146.15,146.05,68.25]
[1642177020563,6.0,146.15,146.05,78.5151]
[1642177020760,0.25,146.15,146.05,78.5151]
[1642177020961,8.987,146.16,146.05,84.5151]
[1642177021160,6.25,146.16,146.05,84.5151]
[1642177021361,6.25,146.16,146.05,84.7751]
[1642177022194,0.25,146.16,146.05,84.7751]
[1642177022363,6.25,146.16,146.05,84.7751]
[1642177023162,0.25,146.16,146.05,84.7751]
[1642177023560,19.19587617,146.19,146.05,84.7751]
[1642177023761,19.19587617,146.19,146.05,78.7751]
[1642177023961,19.19587617,146.19,146.05,84.7751]
[1642177024160,19.19587617,146.19,146.05,78.5151]
[1642177024364,19.19587617,146.19,146.05,84.2651]
[1642177024563,19.19587617,146.19,146.05,78.2651]
[1642177024763,10.2651,146.17,146.05,78.2651]
[1642177024962,16.5151,146.17,146.05,78.2651]
[1642177025362,19.60097617,146.17,146.05,78.2651]
[1642177025561,19.60097617,146.17,146.05,78.5151]
[1642177025763,19.35097617,146.17,146.05,78.5151]
[1642177027263,19.60097617,146.17,146.05,78.5151]
[1642177028265,19.60097617,146.17,146.05,78.7751]
[1642177028464,3.33587617,146.17,146.05,78.7751]
[1642177028863,0.25,146.17,146.05,78.7751]
[1642177029063,30.07057617,146.18,146.05,78.7751]
[1642177029264,36.07057617,146.18,146.05,78.7751]
[1642177029467,36.07057617,146.18,146.05,78.5151]
[1642177030465,6.73489773,146.17,146.05,78.5151]
[1642177030867,12.98489773,146.17,146.05,78.5151]
[1642177031365,6.98489773,146.17,146.05,88.6351]
[1642177031565,6.73489773,146.17,146.05,88.6351]
[1642177032367,29.82057617,146.18,146.05,88.6351]
[1642177032569,3.08587617,146.18,146.05,88.6351]
[1642177033168,3.08587617,146.19,146.05,88.6351]
[1642177033371,0.25,146.18,146.05,88.6351]
[1642177033569,3.33587617,146.19,146.05,88.6351]
[1642177033767,9.33587617,146.19,146.05,96.2331]
[1642177033968,13.03026829,146.19,146.05,96.2331]
[1642177034470,6.78026829,146.19,146.05,102.2331]
[1642177034667,6.78026829,146.19,146.05,121.80708082]
[1642177034868,3.08587617,146.19,146.05,121.80708082]
[1642177035969,2.737,146.21,146.14,10.259]
[1642177036169,3.08587617,146.22,146.15,31.58169535]
[1642177036370,5.82187617,146.22,146.15,99.58169535]
[1642177036770,11.82187617,146.22,146.15,99.58169535]
[1642177037369,9.08587617,146.22,146.15,110.09039535]
[1642177037571,9.08587617,146.22,146.15,110.35039535]
[1642177038270,6.0,146.22,146.15,110.35039535]
[1642177038470,9.08587617,146.23,146.15,110.35039535]
[1642177038670,3.08587617,146.23,146.15,120.21039535]
[1642177039070,3.08587617,146.23,146.16,1.70076993]
[1642177039269,3.08587617,146.23,146.19,10.2537]
[1642177039473,3.08587617,146.23,146.2,23.88568529]
[1642177039877,3.08587617,146.23,146.21,68.0]
[1642177040076,3.08587617,146.23,146.21,68.25]
[1642177040480,3.08587617,146.27,146.21,78.7637]
[1642177042982,3.08587617,146.28,146.21,84.7637]
[1642177044182,3.08587617,146.29,146.21,84.7637]
[1642177045016,3.08587617,146.29,146.23,24.82990681]
[1642177045216,3.08587617,146.29,146.26,24.48370992]
[1642177045417,3.08587617,146.29,146.26,98.68070992]
[1642177045616,3.08587617,146.29,146.26,98.93070992]
[1642177045817,3.08587617,146.29,146.26,99.19070992]
[1642177046021,3.08587617,146.29,146.26,115.05070992]
[1642177046216,3.08587617,146.3,146.26,115.05070992]
[1642177047423,3.08587617,146.33,146.29,30.19831915]
[1642177047820,3.08587617,146.33,146.29,30.44831915]
[1642177048623,3.08587617,146.33,146.29,30.70831915]
[1642177048823,6.99459975,146.34,146.3,68.0]
[1642177049025,6.99459975,146.34,146.3,74.891]
[1642177049425,6.99459975,146.34,146.3,85.1394]
[1642177049624,3.08587617,146.34,146.3,85.1394]
[1642177050727,3.08587617,146.34,146.3,17.1394]
[1642177050926,3.08587617,146.34,146.3,0.25]
[1642177051229,3.08587617,146.34,146.26,9.86]
[1642177052028,2.734,146.33,146.26,9.86]
[1642177052430,2.984,146.33,146.22,9.86]
[1642177052632,8.984,146.33,146.2,9.86]
[1642177053231,3.08587617,146.3,146.22,25.20547556]
[1642177053631,3.08587617,146.3,146.22,25.45547556]
[1642177054030,3.08587617,146.3,146.22,31.45547556]
[1642177054232,3.08587617,146.3,146.23,77.86]
[1642177054431,3.08587617,146.3,146.23,84.52]
[1642177054632,3.08587617,146.3,146.23,90.77]
[1642177055134,3.08587617,146.32,146.23,95.0232]
[1642177055535,3.08587617,146.32,146.23,26.7632]
[1642177055734,3.33587617,146.32,146.23,20.3632]
[1642177055962,3.08587617,146.31,146.23,10.11]
[1642177056135,2.734,146.3,146.23,10.11]
[1642177056836,6.99347072,146.29,146.23,10.11]
[1642177057741,3.08587617,146.28,146.23,10.11]
[1642177058339,3.08587617,146.28,146.18,9.86]
[1642177058540,2.735,146.27,146.18,10.11]
[1642177059439,6.99347072,146.26,146.18,20.3667]
[1642177059839,6.99347072,146.26,146.18,88.3667]
[1642177061541,6.99347072,146.26,146.18,88.6267]
[1642177062744,26.10577617,146.28,146.18,88.6267]
[1642177063580,3.90858301,146.27,146.18,88.6267]
[1642177063780,3.90858301,146.27,146.18,94.6267]
[1642177064378,3.08587617,146.28,146.18,96.32746993]
[1642177065186,3.08587617,146.28,146.18,90.32746993]
[1642177065388,3.08587617,146.28,146.18,96.32746993]
[1642177068490,6.99423807,146.29,146.18,96.32746993]
[1642177069286,3.08587617,146.29,146.18,96.32746993]
[1642177069686,3.08587617,146.29,146.18,230.57837571]
[1642177069887,3.08587617,146.29,146.18,236.96687392]
[1642177070487,6.99423807,146.31,146.18,236.96687392]
[1642177070688,9.72923807,146.31,146.18,236.96687392]
[1642177070890,6.99423807,146.31,146.18,236.96687392]
[1642177071488,3.08587617,146.31,146.18,236.96687392]
[1642177072389,6.99316221,146.32,146.18,236.96687392]
[1642177073790,25.5308,146.31,146.18,236.96687392]
[1642177073990,25.5308,146.31,146.18,230.96687392]
[1642177074392,3.08587617,146.3,146.18,230.96687392]
[1642177075291,6.99316221,146.3,146.18,236.96687392]
[1642177077094,3.90728604,146.3,146.18,236.96687392]
[1642177078097,3.08587617,146.31,146.18,236.96687392]
[1642177078895,6.99345328,146.31,146.18,236.96687392]
[1642177079296,6.99345328,146.31,146.25,10.2489]
[1642177079496,6.99345328,146.31,146.27,22.61020791]
[1642177079898,6.99345328,146.31,146.28,68.0]
[1642177080097,6.99345328,146.31,146.28,68.25]
[1642177080299,6.99345328,146.31,146.28,68.51]
[1642177080696,3.08587617,146.32,146.28,68.51]
[1642177081301,3.08587617,146.32,146.28,78.7583]
[1642177082499,6.9930953,146.32,146.28,78.7583]
[1642177083098,6.9930953,146.32,146.28,87.3783]
[1642177084203,6.9930953,146.32,146.28,97.2383]
[1642177084602,3.08587617,146.33,146.28,103.2383]
[1642177085003,3.08587617,146.33,146.28,97.2383]
[1642177085203,3.08587617,146.33,146.28,103.2383]
[1642177086105,3.08587617,146.35,146.28,103.2383]
[1642177086504,3.08587617,146.35,146.28,102.9783]
[1642177086705,3.08587617,146.35,146.28,20.1083]
[1642177086904,2.733,146.34,146.26,10.2511]
[1642177087105,5.81887617,146.34,146.26,10.2511]
[1642177087305,12.06887617,146.34,146.26,16.2511]
[1642177088606,3.08587617,146.32,146.26,16.2511]